fUST/lending_fUST_20240304
["ID","MTS","AMOUNT","RATE_DAILY","PERIOD"]
[316511577,1709521838080,-29.2001327,0.0002199,2]
[316511578,1709521838090,-145.36356067,0.00022186,2]
[316511579,1709521838099,-289.70332183,0.00022186,2]
[316511581,1709521838109,-42.21474812,0.00022186,2]
[316511582,1709521838121,-11807.48560781,0.00022186,2]
[316511588,1709521840833,-176.28320101,0.00021988,2]
[316511589,1709521840842,-4389.55977279,0.00022186,2]
[316511590,1709521840854,-2547.10416244,0.00022186,2]
[316511591,1709521840865,-13587.08454146,0.00022186,2]
[316511592,1709521840877,-29900.43336511,0.00022186,2]
[316511593,1709521840907,-14011.81646445,0.00022186,2]
[316511594,1709521840921,-15798.72955066,0.00022186,2]
[316511595,1709521840932,-3983.9,0.00022186,2]
[316511596,1709521840945,-362.68449822,0.00022186,2]
[316511597,1709521840957,-403.5335302,0.00022186,2]
[316511598,1709521840968,-297.91664767,0.00022186,2]
[316511599,1709521840997,-327.44182363,0.00022186,2]
[316511616,1709521842852,-6256.95430951,0.00022186,2]
[316511617,1709521842862,-542.70099351,0.00022557,2]
[316511618,1709521842871,-696.10481478,0.00022642,2]
[316511619,1709521842880,-853.4989297,0.00022726,2]
[316511620,1709521842889,-20424.5805837,0.00023001,2]
[316511621,1709521842898,-590.37379038,0.00023015,5]
[316511622,1709521842908,-1472.85786267,0.00023999,2]
[316511624,1709521842917,-2000.0,0.00024,2]
[316511626,1709521842926,-300.0,0.00024,11]
[316511627,1709521842935,-10000.0,0.00024,2]
[316511628,1709521842944,-10000.0,0.00024,2]
[316511629,1709521842953,-18515.91367908,0.00024,2]
[316511630,1709521842962,-2000.0,0.0002401,2]
[316511631,1709521842970,-2000.0,0.0002402,2]
[316511632,1709521842980,-161.4660452,0.00024027,2]
[316511633,1709521842989,-203.7109309,0.00024027,2]
[316511634,1709521842998,-2000.0,0.0002403,2]
[316511635,1709521843007,-2000.0,0.0002404,2]
[316511636,1709521843016,-2000.0,0.0002405,2]
[316511637,1709521843025,-2000.0,0.0002406,2]
[316511638,1709521843034,-2000.0,0.0002407,2]
[316511639,1709521843043,-2000.0,0.0002408,2]
[316511640,1709521843053,-2000.0,0.0002409,2]
[316511641,1709521843064,-2000.0,0.000241,2]
[316511642,1709521843073,-2409.999448,0.0002411,2]
[316511643,1709521843082,-163.20919826,0.00024557,2]
[316511644,1709521843091,-305.81,0.00024635,3]
[316511645,1709521843101,-366.97,0.00024637,3]
[316511646,1709521843109,-11399.78978262,0.00024645,5]
[316511647,1709521843118,-158.99,0.00024656,2]
[316511648,1709521843128,-158.99,0.00024656,2]
[316511649,1709521843137,-158.99,0.00024656,2]
[316511650,1709521843146,-158.99,0.00024656,2]
[316511651,1709521843155,-581.52376501,0.00024657,2]
[316511652,1709521843164,-500.0,0.00024657,2]
[316511653,1709521843173,-500.0,0.00024657,2]
[316511654,1709521843182,-500.0,0.00024657,2]
[316511655,1709521843191,-504.35120277,0.00024657,2]
[316511656,1709521843201,-500.0,0.00024657,2]
[316511657,1709521843209,-500.0,0.00024657,2]
[316511658,1709521843218,-509.68117145,0.00024657,2]
[316511659,1709521843227,-500.0,0.00024657,2]
[316511660,1709521843236,-508.3940513,0.00024657,2]
[316511661,1709521843246,-502.04935941,0.00024657,2]
[316511662,1709521843255,-602.10840966,0.00024657,2]
[316511663,1709521843264,-517.0,0.00024657,2]
[316511664,1709521843273,-517.0,0.00024657,2]
[316511665,1709521843282,-517.0,0.00024657,2]
[316511666,1709521843291,-517.0,0.00024657,2]
[316511667,1709521843300,-517.0,0.00024657,2]
[316511668,1709521843312,-517.0,0.00024657,2]
[316511669,1709521843321,-500.0,0.00024657,2]
[316511670,1709521843330,-500.0,0.00024657,2]
[316511671,1709521843339,-500.0,0.00024657,2]
[316511672,1709521843348,-500.0,0.00024657,2]
[316511673,1709521843358,-500.0,0.00024657,2]
[316511674,1709521843367,-500.0,0.00024657,2]
[316511675,1709521843377,-500.0,0.00024657,2]
[316511676,1709521843386,-500.0,0.00024657,2]
[316511677,1709521843395,-500.0,0.00024657,2]
[316511678,1709521843404,-271.26387455,0.00024657,2]
[316511679,1709521843413,-505.93884431,0.00024657,2]
[316511680,1709521843423,-527.46,0.00024657,2]
[316511681,1709521843432,-527.46,0.00024657,2]
[316511682,1709521843442,-527.46,0.00024657,2]
[316511683,1709521843451,-527.46,0.00024657,2]
[316511684,1709521843461,-527.46,0.00024657,2]
[316511685,1709521843470,-527.46,0.00024657,2]
[316511686,1709521843479,-500.0,0.00024657,2]
[316511687,1709521843489,-500.0,0.00024657,2]
[316511688,1709521843498,-504.65785474,0.00024657,2]
[316511689,1709521843508,-500.0,0.00024657,2]
[316511690,1709521843517,-500.0,0.00024657,2]
[316511691,1709521843616,-11.43861441,0.00024657,2]
[316511692,1709521843678,-488.56138559,0.00024657,2]
[316511693,1709521843687,-11.43861441,0.00024657,2]
[316511945,1709522125368,295.14,0.00023812,120]
[316512000,1709522831167,-155.08374522,0.00022013,2]
[316512014,1709522945102,-312.60385265,0.00022009,2]
[316512015,1709522945123,-154.9690062,0.0002201,2]
[316512016,1709522945143,-1472.85786267,0.00022014,2]
[316512017,1709522945162,-7673.0581418,0.00022015,2]
[316512018,1709522945182,-232.699906,0.00022179,2]
[316512019,1709522945203,-250.0,0.00022357,2]
[316512020,1709522945229,-289.3773903,0.00022545,2]
[316512029,1709523022364,337.07634063,0.00019915,2]
[316512080,1709523038013,-500.0,0.0002277,2]
[316512082,1709523038025,-432.25340078,0.0002277,2]
[316512132,1709523041015,-152.03970144,0.0002277,2]
[316512133,1709523041024,-312.60385265,0.000238,2]
[316512134,1709523041036,-1472.85786267,0.00023801,2]
[316512135,1709523041053,-254.84,0.00023802,3]
[316512136,1709523041066,-764.56,0.00023802,3]
[316512137,1709523041079,-7199.18979901,0.00023812,2]
[316512138,1709523041096,-2599.81304724,0.00023812,2]
[316512139,1709523041112,-22806.99902848,0.00023812,2]
[316512181,1709523043426,-733.52278976,0.00023812,2]
[316512229,1709523365165,222.07916577,0.00019,2]
[316512324,1709524162111,-274.17258195,0.00021297,2]
[316512325,1709524162131,-154.9690062,0.00021298,2]
[316512326,1709524162152,-1472.85786267,0.00021298,2]
[316512327,1709524162172,-154.9690062,0.00021298,2]
[316512328,1709524162192,-160.02841284,0.00021299,2]
[316512329,1709524162227,-946.9695734,0.00021302,2]
[316512330,1709524162263,-565.19171339,0.00021712,2]
[316512331,1709524162287,-231.263509,0.00021797,2]
[316512332,1709524164613,195.4915367,0.00021296,2]
[316512333,1709524167097,-117.11231595,0.00021296,2]
[316512334,1709524167119,-78.27105905,0.00021296,2]
[316512337,1709524230739,376.79447559,0.00019612,2]
[316512397,1709524238294,-81.75735379,0.00021296,2]
[316512398,1709524238306,-1472.85786267,0.00023509,2]
[316512399,1709524238316,-231.263509,0.0002351,2]
[316512400,1709524238325,-4467.25727454,0.00023812,2]
[316512407,1709524241233,-2192.05164608,0.00023812,2]
[316512408,1709524241246,-1557.81125677,0.00023812,2]
[316512464,1709524243259,-113.27819225,0.00023812,2]
[316512577,1709524407770,956.32847828,0.0002,2]
[316512581,1709524442552,2814.51244384,0.0002,2]
[316512676,1709525315078,405.3494998,0.0002,2]
[316512677,1709525352127,-1472.85786267,0.00020999,2]
[316512678,1709525352147,-500.0,0.00021,2]
[316512679,1709525352167,-312.60385265,0.00021425,2]
[316512680,1709525352187,-176.2296085,0.00021428,2]
[316512681,1709525352208,-442.34569023,0.00021712,2]
[316512682,1709525352228,-24900.0,0.00021813,2]
[316512683,1709525352252,-2183.1270085,0.00021874,2]
[316512684,1709525352274,-500.0,0.00022,3]
[316512685,1709525352293,-1587.76543356,0.00022082,2]
[316512686,1709525356154,-151.489946,0.00022082,2]
[316512687,1709525358102,-2.13526254,0.00022082,2]
[316512746,1709525432500,-500.0,0.00023,3]
[316512748,1709525432510,-1472.85786267,0.00023811,2]
[316512749,1709525432520,-62046.93598794,0.00023812,2]
[316512750,1709525432529,-8238.30978747,0.0002397,2]
[316512751,1709525432539,-300.0,0.00024,11]
[316512753,1709525432548,-509.68,0.00024546,3]
[316512755,1709525432558,-15261.55953879,0.00024557,2]
[316512757,1709525432567,-2000.0,0.000246,2]
[316512758,1709525432577,-2000.0,0.0002461,2]
[316512759,1709525432588,-2000.0,0.0002462,2]
[316512761,1709525432598,-2000.0,0.0002463,2]
[316512763,1709525432607,-2000.0,0.0002464,2]
[316512765,1709525432620,-422.68,0.00024656,2]
[316512767,1709525432629,-422.68,0.00024656,2]
[316512769,1709525432638,-422.68,0.00024656,2]
[316512771,1709525432647,-422.68,0.00024656,2]
[316512773,1709525432656,-422.68,0.00024656,2]
[316512775,1709525432666,-422.68,0.00024656,2]
[316512777,1709525432674,-422.68,0.00024656,2]
[316512779,1709525432684,-422.68,0.00024656,2]
[316512781,1709525432694,-422.68,0.00024656,2]
[316512783,1709525432703,-155.31997339,0.00024657,2]
[316512785,1709525432713,-159.77889802,0.00024657,2]
[316512787,1709525432722,-166.56,0.00024657,2]
[316512789,1709525432732,-617.45817881,0.00024657,2]
[316512791,1709525432741,-501.15098156,0.00024657,2]
[316512793,1709525432751,-500.0,0.00024657,2]
[316512795,1709525432761,-332.00256559,0.00024657,2]
[316512797,1709525432771,-500.0,0.00024657,2]
[316512799,1709525432781,-500.0,0.00024657,2]
[316512801,1709525432790,-500.0,0.00024657,2]
[316512802,1709525432799,-500.0,0.00024657,2]
[316512804,1709525432809,-329.04836405,0.00024657,2]
[316512806,1709525432820,-500.0,0.00024657,2]
[316512809,1709525432830,-500.0,0.00024657,2]
[316512810,1709525432839,-500.0,0.00024657,2]
[316512812,1709525432848,-500.0,0.00024657,2]
[316512814,1709525432857,-508.33497567,0.00024657,2]
[316512816,1709525432867,-507.5077712,0.00024657,2]
[316512818,1709525432876,-554.42,0.00024657,2]
[316512819,1709525432885,-554.42,0.00024657,2]
[316512820,1709525432894,-554.42,0.00024657,2]
[316512821,1709525432903,-554.42,0.00024657,2]
[316512822,1709525432913,-554.42,0.00024657,2]
[316512823,1709525432922,-554.42,0.00024657,2]
[316512824,1709525432931,-554.42,0.00024657,2]
[316512825,1709525432940,-502.98904935,0.00024657,2]
[316512826,1709525432949,-364.04614319,0.00024657,2]
[316512827,1709525432958,-500.0,0.00024657,2]
[316512828,1709525432967,-500.0,0.00024657,2]
[316512829,1709525432976,-500.0,0.00024657,2]
[316512830,1709525432986,-500.0,0.00024657,2]
[316512831,1709525432995,-500.0,0.00024657,2]
[316512832,1709525433004,-500.0,0.00024657,2]
[316512833,1709525433013,-500.0,0.00024657,2]
[316512834,1709525433022,-500.0,0.00024657,2]
[316512835,1709525433031,-579.05856905,0.00024657,2]
[316512836,1709525433040,-500.0,0.00024657,2]
[316512837,1709525433049,-500.0,0.00024657,2]
[316512838,1709525433059,-500.0,0.00024657,2]
[316512839,1709525433067,-500.0,0.00024657,2]
[316512840,1709525433076,-500.0,0.00024657,2]
[316512841,1709525433088,-506.09579502,0.00024657,2]
[316512842,1709525433097,-265.27178032,0.00024657,2]
[316512843,1709525433106,-500.0,0.00024657,2]
[316512844,1709525433115,-508.37617176,0.00024657,2]
[316512845,1709525433124,-501.12224819,0.00024657,2]
[316512846,1709525433134,-500.0,0.00024657,2]
[316512847,1709525433143,-500.0,0.00024657,2]
[316512848,1709525433152,-500.0,0.00024657,2]
[316512849,1709525433162,-500.0,0.00024657,2]
[316512850,1709525433171,-500.0,0.00024657,2]
[316512851,1709525433180,-590.52064694,0.00024657,2]
[316512852,1709525433190,-501.22893116,0.00024657,2]
[316512853,1709525433198,-500.0,0.00024657,2]
[316512854,1709525433207,-500.0,0.00024657,2]
[316512855,1709525433217,-500.0,0.00024657,2]
[316512856,1709525433226,-592.9474104,0.00024657,2]
[316512857,1709525433234,-426.51295146,0.00024657,2]
[316512858,1709525433244,-500.0,0.00024657,2]
[316512859,1709525433253,-500.0,0.00024657,2]
[316512860,1709525433262,-500.0,0.00024657,2]
[316512861,1709525433271,-500.0,0.00024657,2]
[316512862,1709525433280,-500.0,0.00024657,2]
[316512863,1709525433290,-501.0718894,0.00024657,2]
[316512864,1709525433299,-151.0,0.00024657,2]
[316512865,1709525433308,-151.0,0.00024657,2]
[316512866,1709525433317,-151.0,0.00024657,2]
[316512867,1709525433326,-151.0,0.00024657,2]
[316512868,1709525433338,-151.0,0.00024657,2]
[316512869,1709525433347,-151.0,0.00024657,2]
[316512870,1709525433356,-151.0,0.00024657,2]
[316512871,1709525433365,-151.0,0.00024657,2]
[316512872,1709525433374,-151.0,0.00024657,2]
[316512873,1709525433383,-151.0,0.00024657,2]
[316512874,1709525433393,-151.0,0.00024657,2]
[316512875,1709525433402,-248.450375,0.00024657,2]
[316512876,1709525433411,-345.97220144,0.00024657,2]
[316512877,1709525433421,-500.0,0.00024657,2]
[316512878,1709525433430,-500.0,0.00024657,2]
[316512879,1709525433439,-500.0,0.00024657,2]
[316512880,1709525433448,-500.0,0.00024657,2]
[316512881,1709525433458,-500.0,0.00024657,2]
[316512882,1709525433467,-500.0,0.00024657,2]
[316512883,1709525433476,-592.40222318,0.00024657,2]
[316512884,1709525433486,-502.6055152,0.00024657,2]
[316512885,1709525433495,-500.0,0.00024657,2]
[316512886,1709525433504,-501.81166482,0.00024657,2]
[316512887,1709525433513,-500.0,0.00024657,2]
[316512888,1709525433523,-500.0,0.00024657,2]
[316512889,1709525433532,-500.0,0.00024657,2]
[316512890,1709525433541,-500.0,0.00024657,2]
[316512891,1709525433550,-500.0,0.00024657,2]
[316512892,1709525433560,-500.0,0.00024657,2]
[316512893,1709525433569,-514.93737132,0.00024657,2]
[316512894,1709525433579,-500.0,0.00024657,2]
[316512895,1709525433589,-500.0,0.00024657,2]
[316512896,1709525433598,-500.0,0.00024657,2]
[316512897,1709525433608,-500.0,0.00024657,2]
[316512898,1709525433621,-500.0,0.00024657,2]
[316512899,1709525433631,-500.0,0.00024657,2]
[316512900,1709525433650,-500.0,0.00024657,2]
[316512901,1709525433662,-507.25967164,0.00024657,2]
[316512902,1709525433671,-500.0,0.00024657,2]
[316512903,1709525433681,-500.0,0.00024657,2]
[316512904,1709525433692,-500.0,0.00024657,2]
[316512905,1709525433702,-507.16399904,0.00024657,2]
[316512906,1709525433711,-500.0,0.00024657,2]
[316512907,1709525433721,-500.0,0.00024657,2]
[316512908,1709525433730,-502.6461679,0.00024657,2]
[316512909,1709525433740,-503.6638036,0.00024657,2]
[316512910,1709525433750,-500.0,0.00024657,2]
[316512911,1709525433759,-500.0,0.00024657,2]
[316512912,1709525433768,-502.33909354,0.00024657,2]
[316512913,1709525433777,-500.0,0.00024657,2]
[316512914,1709525433788,-500.0,0.00024657,2]
[316512915,1709525433797,-500.0,0.00024657,2]
[316512916,1709525433806,-500.0,0.00024657,2]
[316512917,1709525433815,-500.0,0.00024657,2]
[316512918,1709525433824,-500.0,0.00024657,2]
[316512919,1709525433835,-500.0,0.00024657,2]
[316512920,1709525433845,-500.0,0.00024657,2]
[316512921,1709525433855,-500.0,0.00024657,2]
[316512922,1709525433990,-500.0,0.00024657,2]
[316512923,1709525434000,-446.67946487,0.00024657,2]
[316512924,1709525434009,-500.0,0.00024657,2]
[316512925,1709525434018,-500.0,0.00024657,2]
[316512926,1709525434026,-500.0,0.00024657,2]
[316512927,1709525434035,-500.0,0.00024657,2]
[316512928,1709525434044,-500.0,0.00024657,2]
[316512929,1709525434053,-500.0,0.00024657,2]
[316512930,1709525434062,-500.0,0.00024657,2]
[316512931,1709525434072,-500.0,0.00024657,2]
[316512932,1709525434083,-500.0,0.00024657,2]
[316512933,1709525434092,-500.0,0.00024657,2]
[316512934,1709525434102,-500.0,0.00024657,2]
[316512935,1709525434111,-500.0,0.00024657,2]
[316512936,1709525434120,-246.69966539,0.00024657,2]
[316512937,1709525434129,-501.30499727,0.00024657,2]
[316512938,1709525434138,-500.0,0.00024657,2]
[316512939,1709525434148,-500.0,0.00024657,2]
[316512940,1709525434157,-500.0,0.00024657,2]
[316512941,1709525434166,-239.55869414,0.00024657,2]
[316512942,1709525434176,-500.0,0.00024657,2]
[316512943,1709525434186,-500.0,0.00024657,2]
[316512944,1709525434195,-500.0,0.00024657,2]
[316512945,1709525434204,-500.0,0.00024657,2]
[316512946,1709525434215,-151.59455241,0.00024657,2]
[316512947,1709525434224,-500.0,0.00024657,2]
[316512948,1709525434234,-500.0,0.00024657,2]
[316512949,1709525434243,-500.0,0.00024657,2]
[316512950,1709525434252,-500.0,0.00024657,2]
[316512951,1709525434261,-502.87272207,0.00024657,2]
[316512952,1709525434270,-492.49279723,0.00024657,2]
[316512953,1709525434279,-500.0,0.00024657,2]
[316512954,1709525434289,-500.0,0.00024657,2]
[316512955,1709525434298,-500.0,0.00024657,2]
[316512956,1709525434308,-500.0,0.00024657,2]
[316512957,1709525434318,-500.0,0.00024657,2]
[316512958,1709525434327,-506.63711047,0.00024657,2]
[316512959,1709525434342,-562.17,0.00024657,2]
[316512960,1709525434351,-562.17,0.00024657,2]
[316512961,1709525434361,-562.17,0.00024657,2]
[316512962,1709525434370,-562.17,0.00024657,2]
[316512963,1709525434380,-562.17,0.00024657,2]
[316512964,1709525434390,-562.17,0.00024657,2]
[316512965,1709525434401,-562.17,0.00024657,2]
[316512966,1709525434411,-562.17,0.00024657,2]
[316512967,1709525434421,-500.0,0.00024657,2]
[316512968,1709525434430,-500.0,0.00024657,2]
[316512969,1709525434439,-502.48567873,0.00024657,2]
[316512970,1709525434449,-500.0,0.00024657,2]
[316512971,1709525434458,-500.0,0.00024657,2]
[316512972,1709525434468,-500.0,0.00024657,2]
[316512973,1709525434478,-500.0,0.00024657,2]
[316512974,1709525434487,-500.0,0.00024657,2]
[316512975,1709525434496,-500.0,0.00024657,2]
[316512976,1709525434505,-500.0,0.00024657,2]
[316512977,1709525434515,-500.0,0.00024657,2]
[316512978,1709525434524,-500.0,0.00024657,2]
[316512979,1709525434533,-500.0,0.00024657,2]
[316512980,1709525434542,-500.0,0.00024657,2]
[316512981,1709525434551,-502.18241739,0.00024657,2]
[316512982,1709525434560,-164.54159901,0.00024657,2]
[316512983,1709525434570,-500.0,0.00024657,2]
[316512984,1709525434580,-500.0,0.00024657,2]
[316512985,1709525434593,-179.90000493,0.00024657,2]
[316512986,1709525434615,-500.0,0.00024657,2]
[316512987,1709525434625,-501.70408258,0.00024657,2]
[316512988,1709525434635,-500.0,0.00024657,2]
[316512989,1709525434644,-509.05171708,0.00024657,2]
[316512990,1709525434654,-502.97038735,0.00024657,2]
[316512991,1709525434664,-501.84941457,0.00024657,2]
[316512992,1709525434673,-500.0,0.00024657,2]
[316512993,1709525434683,-279.95548737,0.00024657,2]
[316512994,1709525434693,-501.48716906,0.00024657,2]
[316512995,1709525434703,-500.0,0.00024657,2]
[316512996,1709525434712,-500.0,0.00024657,2]
[316512997,1709525434721,-500.0,0.00024657,2]
[316512998,1709525434730,-500.0,0.00024657,2]
[316512999,1709525434739,-500.0,0.00024657,2]
[316513000,1709525434748,-500.0,0.00024657,2]
[316513001,1709525434758,-500.0,0.00024657,2]
[316513002,1709525434767,-500.0,0.00024657,2]
[316513003,1709525434776,-500.0,0.00024657,2]
[316513004,1709525434786,-638.9518691,0.00024657,2]
[316513005,1709525434795,-500.0,0.00024657,2]
[316513006,1709525434805,-500.0,0.00024657,2]
[316513007,1709525434815,-500.0,0.00024657,2]
[316513008,1709525434824,-500.0,0.00024657,2]
[316513009,1709525434836,-500.0,0.00024657,2]
[316513010,1709525434845,-507.66184996,0.00024657,2]
[316513011,1709525434854,-324.48154479,0.00024657,2]
[316513012,1709525434864,-444.76038203,0.00024657,2]
[316513013,1709525434875,-504.0785154,0.00024657,2]
[316513014,1709525434884,-501.56299298,0.00024657,2]
[316513015,1709525434893,-504.66751988,0.00024657,2]
[316513016,1709525434903,-502.32877394,0.00024657,2]
[316513017,1709525434912,-500.0,0.00024657,2]
[316513018,1709525434921,-500.0,0.00024657,2]
[316513019,1709525434930,-500.0,0.00024657,2]
[316513020,1709525434939,-500.0,0.00024657,2]
[316513021,1709525434948,-500.0,0.00024657,2]
[316513022,1709525434957,-500.0,0.00024657,2]
[316513023,1709525434966,-500.0,0.00024657,2]
[316513024,1709525434975,-500.0,0.00024657,2]
[316513025,1709525434984,-500.0,0.00024657,2]
[316513026,1709525434993,-500.0,0.00024657,2]
[316513027,1709525435002,-500.0,0.00024657,2]
[316513028,1709525435012,-500.0,0.00024657,2]
[316513029,1709525435021,-500.17359503,0.00024657,2]
[316513030,1709525435031,-500.0,0.00024657,2]
[316513031,1709525435040,-196.79561676,0.00024657,2]
[316513032,1709525435050,-500.0,0.00024657,2]
[316513033,1709525435060,-500.0,0.00024657,2]
[316513034,1709525435069,-500.0,0.00024657,2]
[316513035,1709525435079,-500.0,0.00024657,2]
[316513036,1709525435090,-501.23603556,0.00024657,2]
[316513037,1709525435100,-500.0,0.00024657,2]
[316513038,1709525435109,-508.40463834,0.00024657,2]
[316513039,1709525435119,-299.373459,0.00024657,2]
[316513040,1709525435128,-956.2,0.00024657,2]
[316513041,1709525435139,-956.2,0.00024657,2]
[316513042,1709525435148,-956.2,0.00024657,2]
[316513043,1709525435158,-956.2,0.00024657,2]
[316513044,1709525435168,-956.2,0.00024657,2]
[316513045,1709525435177,-956.2,0.00024657,2]
[316513046,1709525435187,-956.2,0.00024657,2]
[316513047,1709525435197,-956.2,0.00024657,2]
[316513048,1709525435206,-500.0,0.00024657,2]
[316513049,1709525435215,-500.0,0.00024657,2]
[316513050,1709525435224,-500.0,0.00024657,2]
[316513051,1709525435234,-500.0,0.00024657,2]
[316513052,1709525435243,-513.71919479,0.00024657,2]
[316513053,1709525435253,-500.0,0.00024657,2]
[316513054,1709525435262,-500.0,0.00024657,2]
[316513055,1709525435271,-500.0,0.00024657,2]
[316513056,1709525435280,-500.0,0.00024657,2]
[316513057,1709525435289,-574.20809463,0.00024657,2]
[316513058,1709525435299,-632.13,0.00024657,2]
[316513059,1709525435308,-632.13,0.00024657,2]
[316513060,1709525435318,-632.13,0.00024657,2]
[316513061,1709525435327,-632.13,0.00024657,2]
[316513062,1709525435337,-632.13,0.00024657,2]
[316513063,1709525435346,-632.13,0.00024657,2]
[316513064,1709525435356,-632.13,0.00024657,2]
[316513065,1709525435366,-632.13,0.00024657,2]
[316513066,1709525435375,-151.0,0.00024657,2]
[316513067,1709525435385,-151.0,0.00024657,2]
[316513068,1709525435395,-152.339065,0.00024657,2]
[316513069,1709525435405,-501.43389221,0.00024657,2]
[316513070,1709525435414,-500.0,0.00024657,2]
[316513071,1709525435424,-501.51687491,0.00024657,2]
[316513072,1709525435433,-500.0,0.00024657,2]
[316513073,1709525435443,-500.0,0.00024657,2]
[316513074,1709525435452,-500.0,0.00024657,2]
[316513075,1709525435462,-500.0,0.00024657,2]
[316513076,1709525435471,-500.0,0.00024657,2]
[316513077,1709525435481,-500.0,0.00024657,2]
[316513078,1709525435490,-500.0,0.00024657,2]
[316513079,1709525435500,-500.0,0.00024657,2]
[316513080,1709525435510,-500.0,0.00024657,2]
[316513081,1709525435520,-500.0,0.00024657,2]
[316513082,1709525435529,-500.0,0.00024657,2]
[316513083,1709525435539,-500.0,0.00024657,2]
[316513084,1709525435548,-500.0,0.00024657,2]
[316513085,1709525435558,-500.0,0.00024657,2]
[316513086,1709525435567,-509.65332575,0.00024657,2]
[316513087,1709525435577,-633.67092769,0.00024657,2]
[316513088,1709525435587,-500.0,0.00024657,2]
[316513089,1709525435597,-500.0,0.00024657,2]
[316513090,1709525435609,-500.0,0.00024657,2]
[316513091,1709525435621,-500.0,0.00024657,2]
[316513092,1709525435630,-500.0,0.00024657,2]
[316513093,1709525435639,-500.0,0.00024657,2]
[316513094,1709525435652,-500.0,0.00024657,2]
[316513095,1709525435662,-500.0,0.00024657,2]
[316513096,1709525435672,-500.0,0.00024657,2]
[316513097,1709525435686,-500.0,0.00024657,2]
[316513098,1709525435697,-500.0,0.00024657,2]
[316513099,1709525435706,-630.56531075,0.00024657,2]
[316513100,1709525435716,-500.0,0.00024657,2]
[316513101,1709525435725,-501.21779735,0.00024657,2]
[316513102,1709525435734,-500.0,0.00024657,2]
[316513103,1709525435743,-500.0,0.00024657,2]
[316513104,1709525435753,-504.97824431,0.00024657,2]
[316513105,1709525435762,-500.0,0.00024657,2]
[316513106,1709525435771,-500.0,0.00024657,2]
[316513107,1709525435781,-500.0,0.00024657,2]
[316513108,1709525435791,-500.0,0.00024657,2]
[316513109,1709525435800,-500.0,0.00024657,2]
[316513110,1709525435809,-500.0,0.00024657,2]
[316513111,1709525435818,-500.0,0.00024657,2]
[316513112,1709525435828,-500.0,0.00024657,2]
[316513113,1709525435839,-500.0,0.00024657,2]
[316513114,1709525435848,-500.0,0.00024657,2]
[316513115,1709525435857,-500.0,0.00024657,2]
[316513116,1709525435867,-500.0,0.00024657,2]
[316513117,1709525435876,-500.0,0.00024657,2]
[316513118,1709525435885,-500.0,0.00024657,2]
[316513119,1709525435895,-500.0,0.00024657,2]
[316513120,1709525435904,-500.0,0.00024657,2]
[316513121,1709525435914,-500.0,0.00024657,2]
[316513122,1709525435923,-500.0,0.00024657,2]
[316513123,1709525435932,-295.88240815,0.00024657,2]
[316513124,1709525435942,-500.0,0.00024657,2]
[316513125,1709525435952,-500.0,0.00024657,2]
[316513126,1709525435962,-500.0,0.00024657,2]
[316513127,1709525435971,-509.16010938,0.00024657,2]
[316513128,1709525435981,-500.0,0.00024657,2]
[316513129,1709525435990,-500.0,0.00024657,2]
[316513130,1709525436001,-505.26991587,0.00024657,2]